Cogmind - Beta 11 @@@ ROGUE MODE // 2022.03.19 @ 14:11:07 Player: Infomantis Result: Destroyed by D-53 Grenadier with Mini Grenade Launcher Performance ------------- Evolutions (0) 0 Regions Visited (2) 400 Robots Destroyed (16) 80 Value Destroyed (338) 338 Prototype IDs (0) 0 Alien Tech Used (0) 0 Bonus (0) 0 TOTAL SCORE: 818 Bonus ------- None Cogmind --------- Core Integrity 0/250 Matter 147/300 Energy 100/100 System Corruption 4% Temperature Cool (0) Movement Core (150) Ox2 Location -10/Mines Parts ------- > --- POWER (1) -------- (None) > --- PROPULSION (2) --- (None) > --- UTILITY (2) ------ Small Storage Unit > --- WEAPON (2) ------- Mini Grenade Launcher Mini Grenade Launcher > --- INVENTORY (8) ---- Light Ion Engine Light Treads Wheel Transport Network Coupler Salvage Targeting Computer Mini Grenade Launcher Mining Laser Peak State ------------ > --- POWER ------------ Ion Engine > --- PROPULSION ------- Aluminum Leg Aluminum Leg > --- UTILITY ---------- Small Storage Unit Salvage Targeting Computer > --- WEAPON ----------- EM Pulse Gun Mini Grenade Launcher > --- INVENTORY -------- Light Ion Engine Light Treads Light Treads Wheel Wheel Medium Laser Mini Grenade Launcher Mini Grenade Launcher [Rating: 10] Favorites ----------- Power Ion Engine Engine Ion Engine Propulsion Aluminum Leg Leg Aluminum Leg Utility Small Storage Unit Storage Small Storage Unit Processor Salvage Targeting Computer Weapon Mini Grenade Launcher Energy Gun Medium Laser Launcher Mini Grenade Launcher Build | -11 -10 -10 ------- Run | Scr Mat Min Slots Evolved . | . . . Power . | . . . Propulsion . | . . . Utility . | . . . Weapon . | . . . Parts Attached 14 | 7 6 1 Power 3 | 2 1 . Engine 3 | 2 1 . Core . | . . . Reactor . | . . . Propulsion 2 | 2 . . Treads . | . . . Leg 2 | 2 . . Wheel . | . . . Hover . | . . . Flight . | . . . Utility 2 | 1 1 . Device . | . . . Storage 1 | 1 . . Processor 1 | . 1 . Hackware . | . . . Protection . | . . . Artifact . | . . . Weapon 7 | 2 4 1 Energy Gun 4 | 2 2 . Energy Cannon . | . . . Ballistic Gun . | . . . Ballistic Cannon . | . . . Launcher 3 | . 2 1 Special Weapon . | . . . Impact Weapon . | . . . Slashing Weapon . | . . . Piercing Weapon . | . . . Special Melee Weapon . | . . . Unidentified Prototypes . | . . . Parts Lost 5 | . 1 4 Power 1 | . . 1 Propulsion 2 | . . 2 Utility 1 | . 1 . Weapon 1 | . . 1 Highest Loss Streak 4 | . 1 4 To Critical Strikes . | . . . Average Slot Usage (%) 86 | . 88 83 Engine 13 | . 14 13 Leg 27 | . 28 27 Storage 14 | . 14 14 Processor 2 | . 4 . Energy Gun 14 | . 16 13 Launcher 12 | . 10 14 Naked Turns . | . . . Heaviest Build 14 | 14 14 13 Greatest Support 20 | 20 20 20 Greatest Overweight (x) . | . . . Average Overweight (x) . | . . . Largest Inventory Capacity 8 | 8 8 8 Average Capacity 7 | 7 8 8 Most Carried 8 | 7 8 8 Average Carried 7 | 4 7 7 Final Capacity 8 | 8 8 8 Final Carried 8 | 6 8 7 Class Distribution -------------------- 100% | Mutant Dominant Class ---------------- Mutant | -10/Materials Mutant | -10/Mines Resources | -11 -10 -10 ----------- Run | Scr Mat Min Matter Collected 351 | 246 87 18 Remotely . | . . . Salvage Created 360 | . 360 . Parts 27 | . 27 . Haulers Intercepted 2 | . 2 . Recyclers Shooed . | . . . Parts Field Recycled . | . . . Retrieved Matter . | . . . Parts Self-Destructed . | . . . Prevented . | . . . Kills | -11 -10 -10 ------- Run | Scr Mat Min Combat Hostiles Destroyed 9 | . 8 1 Guns 3 | . 3 . AOE 6 | . 5 1 Classes Destroyed 9 | . 8 1 Worker 1 | . 1 . Builder 1 | . 1 . Tunneler 1 | . 1 . Hauler 2 | . 2 . Operator 1 | . 1 . Watcher 1 | . 1 . Swarmer 3 | . 3 . Grunt 5 | . 5 . Demolisher 1 | . . 1 Best Kill Streak 14 | . 14 1 Combat Bots Only 7 | . 7 1 Max Kills in Single Turn 2 | . 2 1 Gunslinging . | . . . Exploded 2 | . 2 1 Melee . | . . . Uniques/NPCs Destroyed . | . . . Combat | -11 -10 -10 -------- Run | Scr Mat Min Damage Taken 869 | . 386 483 Core 260 | . 84 176 Absorbed by Shields . | . . . Core Remaining (%) 100 | 100 . . Volleys Fired 42 | . 37 5 Largest 2 | . 2 2 Hottest 80 | . 70 80 Shots Fired 50 | . 41 9 Gun 33 | . 31 2 Cannon . | . . . Launcher 17 | . 10 7 Special . | . . . Kinetic . | . . . Thermal 18 | . 16 2 Explosive 17 | . 10 7 Electromagnetic 15 | . 15 . Robot Hit Streak 6 | . 6 3 Robot Miss Streak 7 | . 7 1 Penetration Max . | . . . Secondary Targets . | . . . Shots Hit Robots 24 | . 18 6 Core Hits 36 | . 23 13 Critical Kills . | . . . Critical Parts Destroyed . | . . . Critical Strikes . | . . . Melee Attacks . | . . . Impact . | . . . Slashing . | . . . Piercing . | . . . Sneak Attacks . | . . . Combat Hostiles . | . . . Follow-up Attacks . | . . . Damage Inflicted 926 | . 770 156 Guns 238 | . 213 25 Cannons . | . . . Explosions 688 | . 557 131 Melee . | . . . Ramming . | . . . Kinetic . | . . . Thermal 79 | . 54 25 Explosive 688 | . 557 131 Electromagnetic 159 | . 159 . Impact . | . . . Slashing . | . . . Piercing . | . . . Highest Corruption 4 | . 4 4 Average Corruption 4 | . 4 4 Corruption Purged . | . . . Corruption Blocked . | . . . Effects 11 | . 4 7 Message Errors 3 | . 1 2 Matter Fused 3 | . 1 2 Heat Flow Errors 2 | . . 2 Energy Discharges 1 | . 1 . Data Loss (major) 1 | . . 1 Weapon Failures 1 | . 1 . Overload Shots . | . . . Overflow Damage 26 | . 26 . Projectiles . | . . . Explosions 26 | . 26 . Melee . | . . . Knockbacks . | . . . Impact . | . . . Kinetic . | . . . Secondary . | . . . Self-Inflicted Damage 29 | . 29 . Shots 1 | . 1 . Rammed . | . . . Targets Rammed . | . . . Kicked . | . . . Crushed . | . . . Highest Temperature 159 | . 159 142 Average Temperature 56 | . 59 47 Received Heat Transfer 168 | . 168 . Siege Activations . | . . . Robots Corrupted . | . . . Combat Hostiles . | . . . Parts Fried 1 | . 1 . Impact Corruptions . | . . . Robots Melted . | . . . Combat Hostiles . | . . . Parts Melted . | . . . Heat Transferred 199 | . 125 74 Parts Sabotaged . | . . . Parts Stolen . | . . . Parts Stripped . | . . . Power Chain Reactions . | . . . Missiles Intercepted . | . . . Alert | -11 -10 -10 ------- Run | Scr Mat Min Peak Influence 361 | . 361 149 Initial 84 | . . 84 Average 96 | . 128 85 Maximum Alert Level 1 | . 1 . Low Security (%) 80 | 100 56 100 Level 1 20 | . 43 . Level 2 . | . . . Level 3 . | . . . Level 4 . | . . . Level 5 . | . . . High Security . | . . . Max Security . | . . . Squads Dispatched . | . . . Investigation . | . . . Extermination . | . . . Reinforcement . | . . . Assault . | . . . Garrison . | . . . Intercept . | . . . Searches Triggered . | . . . Construction Impeded . | . . . Haulers Reinforced . | . . . Active Scanning Responses . | . . . Cargo Convoy Interrupts . | . . . Stealth | -11 -10 -10 --------- Run | Scr Mat Min Distress Signals 1 | . 1 . Communications Jammed . | . . . Distress Signals . | . . . Times Spotted 14 | . 12 2 Peak Tracking Total 5 | . 5 2 Tactical Retreats . | . . . Traps | -11 -10 -10 ------- Run | Scr Mat Min Traps Triggered . | . . . Indirectly . | . . . Trap Hack Attempts . | . . . Triggered . | . . . Disarmed . | . . . Reprogrammed . | . . . Reused . | . . . Traps Extracted . | . . . Installed . | . . . Triggered . | . . . Machines | -11 -10 -10 ---------- Run | Scr Mat Min Machines Disabled 1 | . 1 . Max in Single Turn 1 | . 1 . Machines Sabotaged . | . . . Garrisons Compromised . | . . . Overloaded Fab Kills . | . . . Hacking | -11 -10 -10 --------- Run | Scr Mat Min Machines Accessed 2 | . 2 . Terminals 2 | . 2 . Fabricators . | . . . Repair Stations . | . . . Recycling Units . | . . . Scanalyzers . | . . . Garrison Access . | . . . Total Hacks 5 | . 5 . Successful 4 | . 4 . Failed 1 | . 1 . Catastrophic . | . . . Database Lockouts . | . . . Manual 3 | . 3 . Terminals 5 | . 5 . Fabricators . | . . . Repair Stations . | . . . Recycling Units . | . . . Scanalyzers . | . . . Garrison Access . | . . . Terminal Hacks 3 | . 3 . Branch Access Points 1 | . 1 . Unreport Threat 1 | . 1 . Locate Traps 1 | . 1 . Fabricator Hacks . | . . . Repair Station Hacks . | . . . Recycling Unit Hacks . | . . . Scanalyzer . | . . . Garrison Access Hacks . | . . . Unauthorized Hacks 1 | . 1 . Terminals 1 | . 1 . Botnet 1 | . 1 . Fabricators . | . . . Repair Stations . | . . . Recycling Units . | . . . Scanalyzers . | . . . Garrison Access . | . . . Data Cores Recovered . | . . . Used . | . . . Hacking Detections . | . . . Full Trace Events . | . . . Feedback Events . | . . . Feedback Blocked . | . . . Robot Schematics Acquired . | . . . Robots Built . | . . . Authchips . | . . . Time . | . . . Total Robot Build Rating . | . . . Part Schematics Acquired . | . . . Parts Built . | . . . Authchips . | . . . Time . | . . . Total Part Build Rating . | . . . Parts Repaired . | . . . Time . | . . . Parts Recycled . | . . . Recycled Matter . | . . . Retrieved Matter . | . . . Retrieved Components . | . . . Parts Scanalyzed . | . . . Part Schematics Acquired . | . . . Parts Damaged . | . . . Bothacking | -11 -10 -10 ------------ Run | Scr Mat Min Used RIF Installer . | . . . Robots Hacked . | . . . Non-combat . | . . . Combat . | . . . Robot Hacks Applied . | . . . Relay Couplers Released . | . . . Fabnet Peak Effective % . | . . . Robots Rewired . | . . . Allies Hacked . | . . . Hacks Repelled . | . . . Allies | -11 -10 -10 -------- Run | Scr Mat Min Total Allies 1 | . . 1 Largest Group 1 | . . 1 Highest-Rated Group 31 | . . 31 Highest-Rated Ally 31 | . . 31 Total Orders . | . . . Ally Attacks 1 | . . 1 Total Damage 21 | . . 21 Kills . | . . . Allies Corrupted . | . . . Allies Melted . | . . . Intel | -11 -10 -10 ------- Run | Scr Mat Min Robot Analysis Total . | . . . Derelict Logs Recovered 2 | . . 2 Drone Launches . | . . . Drone Recoveries . | . . . Exploration | -11 -10 -10 ------------- Run | Scr Mat Min Turns Passed 710 | 73 327 310 Spaces Moved 490 | 53 193 244 Core 14 | 14 . . Treads . | . . . Legs 476 | 39 193 244 Wheels . | . . . Hover . | . . . Flight . | . . . Fastest Speed 50 | 50 120 120 Average Speed 118 | 101 120 120 Slowest Speed 120 | 120 120 120 Overloaded Moves . | . . . Propulsion Burnouts . | . . . Robots Hopped . | . . . Cave-ins Triggered 1 | . 1 . Exploration Rate (%) 41 | 4 50 71 Regions Visited 2 Branch Regions 1 Pre-discovered Areas . | . . . Known Exits Taken 1 | . 1 . Unknown Exits Taken 1 | 1 . . Scrap Searched 1 | . . 1 Spaces Dug . | . . . Terrain Destroyed 102 | . 54 48 Melee . | . . . Projectile . | . . . AOE 102 | . 54 48 Terrain Rammed . | . . . Walls Destroyed . | . . . Machines Disabled . | . . . Actions | -11 -10 -10 --------- Run | Scr Mat Min Total 572 | 71 248 253 Wait 1 | . . 1 Move 488 | 52 192 244 Hop . | . . . Pick Up 19 | 12 6 1 Fast Attach 3 | . 3 . Attach 8 | 6 1 1 Detach . | . . . Swap 3 | 1 2 . Drop 8 | . 7 1 Fire 42 | . 37 5 Melee . | . . . Ram . | . . . Kick . | . . . Crush . | . . . Escape Stasis . | . . . Rewire . | . . . Trap . | . . . Miscellaneous . | . . . Route ------- -11/Scrapyard -10/Materials (discovered 3 exits: [*Mat] / *Min x2) -10/Mines History --------- Turn | Location | Event 7 | -11/Scrapyard | Discovered new exit (range 16) 74 | -11/Scrapyard | Entered Materials 265 | -10/Materials | Crushed by falling debris 289 | -10/Materials | Discovered new exit (range 15) 291 | -10/Materials | Destroyed 7 combat bots 307 | -10/Materials | Build established: Mutant 318 | -10/Materials | Identified exit to Mines 401 | -10/Materials | Entered Mines 599 | -10/Mines | Received a Mining Laser from a helpful Derelict 689 | -10/Mines | Assembled infested the area 706 | -10/Mines | Core integrity fell below 50% 708 | -10/Mines | Core integrity fell below 20% 711 | -10/Mines | Destroyed by D-53 Grenadier with Mini Grenade Launcher Last Messages --------------- ID-763(g): "And why aren't you carrying a mining laser?! Certainly you don't want THEM to uncover you when the ceiling comes crashing down? Here, take my spare." ID-763(g): "You're apparently new around these parts, I'll cover you." ID-763(g): "Mining lasers are a lot more useful than you might think..." System corrupted: Matter fused (-6). Dropped Wheel. Acquired Mining Laser. LJ=IHM3YBQKJ XN4DUO4GN ALERT: Infestation in the mines, dispatching Demolisher response squad. C-30 ARC bursts open, deploying its payload. D-53 Grenadier unfolds itself. System corrupted: Substantial component data lost. The unstable cave ceiling collapses. Med. Laser destroyed. Aluminum Leg destroyed. The unstable cave ceiling collapses. Ion Engine destroyed. The unstable cave ceiling collapses. D-53 Grenadier destroyed. U-05 Engineer lays Concrete. Map ----- +----------------------------------------------------+ | ???????????????# #????? ""????????????????????? | | ???????????????# #???? ""????????????????????? | | ???????????????# #??? """ ??????????????????? | | ???????????????# #?? #?????????????????? | | ?#####?????????# #?# #??????????????????? | | ## ##????????# ## #???????????????????? | | # ##???????# # #???????????????????? | | # ##?????## #???????????????????? | | ##???## ## #????????????????????? | | ## ##??# ##???????????????????????????? | | ##### #### ##????????????????????????????? | | #???## ## ##?????????????????????????????? | | #????# #??????????????????????????????? | | #????# #??????????????????????????????? | | #????## #??????????????????????????????? | | ??????### ##??????????????????????????????? | | ????????### ##?####?????????????????????????? | | ??????????## ### ##????????????????????????? | | ???????????#### #???????????????????????? | | ####??????????## #####???? #??#??????????? | | ##??????????### #??? # #??????????? | | ##???????????##gu #? #?????????? | | #????????????# u # #?????????? | | #????????????# ##????????? | | ##????????????# #????????? | | #####?????????????# @ d #???????? | | #?????????????????# #????????? | | ???###????????????### #????????? | | ??## ##?????????????## # #?????????? | | ??# ##?????????????## ##? # ##?????????? | | ### ##?????????????#######???? #???????????? | | ## ##???????????????????????? #??????????? | | #?????????????????????????? ??????????? | | #???????????????????????????????????????? | | ### ##???????????????????????????????????????? | | ###?#####????????????????????????????????????????? | | #????????????????????????????????????????????????? | | ?????????????????????????????????????????????????? | | | | | | | | | | | | | | | | | | | | | | | | | +----------------------------------------------------+ Best States ------------- Heat Dissipation 25 Energy Generation 10 Energy Capacity 250 Matter Stores 296 Matter Capacity 300 Sight Range 16 Terrain Scan Density 10 Evasion (%) 55 Salvage Targeting 1 Item Schematics ----------------- None Robot Schematics ------------------ None Fabricated ------------ Nothing Alien Tech Used ----------------- None Achievements -------------- None Challenges ------------ None Game ------ Seed GhostStasisRail Manual? 0 Play Time 00:14:58 Cumulative 61.6 hours Start 2022.03.19 @ 13:52:30 End 2022.03.19 @ 14:11:07 Sessions 1 Manual Loads 0 Difficulty Rogue Special Mode None Game No. 59 Rogue 50 Adventurer 6 Explorer 3 Win Type - Total 1 Types 1/0/0/0/0/0/0/0/0 Lore% 52 Gallery% 57 Achievement% 41 Wizard Run 0 Options --------- ASCII 0 Keyboard 0 Movement Numpad Keybinds 0 Fullscreen 1 Font 12/Fuzzy Map View 83x54 Tactical HUD 0 Map Filters NONE Filters NONE Steam 1 RUN: f577909f-c97b-4e1c-94c2-eae333d3aaa2